Workbook

Sheet Calculators
A2: Macros must be enabled for this tool to function
A3: The purpose of this tool is to assist producers with determining the annual savings from investing in one or more platforms to prune, hand thin and harvest apples.
A6: Some monitors may not be able to accommodate the larger version of this tool, in this case please use the smaller version
A8: To begin click the "Start Payback Tool" button below in your preferred size
B19: due to incompatability this tool will not work on a mac

Sheet BackEnd (hidden)
A3: Acres
A4: 100 | D4: Weeks | E4: Old hours PA | F4: New hours PA | G4: Total Hours Needed
A5: Harvest Efficiency Gain | C5: Pruning | D5: 16 | E5: 40 | F5: =E5*(1-A8) -> 28 | G5: =F5*Acres -> 2800
A6: 0.13 | C6: Thinning | D6: 8 | E6: 60 | F6: =E6*(1-A10) -> 36 | G6: =F6*Acres -> 3600
A7: Pruning Efficiency Gain | C7: Harvest | D7: 8.5 | E7: 70 | F7: =E7*(1-A6) -> 60.9 | G7: =F7*Acres -> 6090
A8: 0.3
A9: Hand Thining Efficiency Gain | D9: Platform-hours (Hours/ ppl on Platform) | E9: Capacity (Hours) | F9: Requirement Met with Machine | G9: Annaul Wage Savings
A10: 0.4 | D10: =G5/H34 -> 466.6666667 | E10: =D5*40*A20 -> 1280 | F10: =IF(E10/D10>1,1,E10/D10) -> 1 | G10: =(E5-F5)*A$4*A$16*F10 -> 17520 | H10: Made Savings Times % Met
A11: Pruning Cost p Acre | D11: =G6/H34 -> 600 | E11: =D6*40*A20 -> 640 | F11: =IF(E11/D11>0.2,0.2,E11/D11) -> 0.2 | G11: =(E6-F6)*A$4*A$16*F11 -> 7008 | H11: Reflects the work that is actually done, before was assuming 100%
D12: =G7/H34 -> 1015 | E12: =D7*50*A20 -> 850 | F12: =IF(E12/D12>1,1,E12/D12) -> 0.8374384236 | G12: =(E7-F7)*A$4*A$16*F12 -> 11126.2069
A13: Hand Thining Cost p Acre | F13: Made the "with machine" distinction because this only accounts for work done on machines meaning 5 ppl can do this much | G13: =SUM(G10:G12) -> 35654.2069
A15: Wage
A16: 14.6
A17: Apple Yield p BA (bu)
A18: 1000
A19: Machines | C19: =9*5.5 -> 49.5
A20: 2
A21: Total Cost
A23: Pruning Worker Hours pA
A25: Thinning Hours p A
A27: Harvest Labor p A | B27: WH per Acre | C27: Max Savings
B28: =A28/A16 -> 0 | C28: =B28*A16*A6*A4 -> 0
A29: Thinning Hours p A
A33: Machine | B33: Cost of Machine | C33: Rate | D33: Down Payment | E33: Monthly Payments | F33: Years | G33: Monthly Payment | H33: Capacity | I33: Total Cost
A34: Bandit Xpress | B34: 65000 | C34: 0.04 | D34: 20000 | E34: 1 | F34: 5 | G34: =PMT(C34/E34,E34*F34,B34*A20,-D34,0) -> -25508.98248 | H34: 6 | I34: =-(E34*F34*G34-D34) -> 147544.9124
A35: Huron Fruit System | B35: 65000 | C35: 0.0415 | D35: 0 | E35: =12 -> 12 | F35: 5 | G35: =PMT(C35/E35,E35*F35,B35,-D35,0) -> -1201.478897 | H35: 4
A38: Capacity Options
A39: 4
A40: 6

Sheet Our Assumption Numbers (hidden)
A3: Acres
A4: 100 | D4: Weeks | E4: Old hours PA | F4: New hours PA | G4: Total Hours Needed
A5: Harvest Efficiency Gain | C5: Pruning | D5: 16 | E5: 40 | F5: =E5*(1-A8) -> 28 | G5: =F5*Acres -> 2800
A6: 0.13 | C6: Thinning | D6: 8 | E6: 60 | F6: =E6*(1-A10) -> 36 | G6: =F6*Acres -> 3600
A7: Pruning Efficiency Gain | C7: Harvest | D7: 8.5 | E7: 70 | F7: =E7*(1-A6) -> 60.9 | G7: =F7*Acres -> 6090
A8: 0.3
A9: Hand Thining Efficiency Gain | D9: Platform-hours (Hours/ ppl on Platform) | E9: Capacity (Hours) | F9: Requirement Met with Machine | G9: Savings
A10: 0.4 | D10: =G5/H34 -> 466.6666667 | E10: =D5*40*A20 -> 640 | F10: =IF(E10/D10>1,1,E10/D10) -> 1 | G10: =(E5-F5)*A$4*A$16*F10 -> 17760 | H10: Made Savings Times % Met
A11: Pruning Cost p Acre | D11: =G6/H34 -> 600 | E11: =D6*40*A20 -> 320 | F11: =IF(E11/D11>0.2,0.2,E11/D11) -> 0.2 | G11: =(E6-F6)*A$4*A$16*F11 -> 7104 | H11: Reflects the work that is actually done, before was assuming 100%
A12: 500 | D12: =G7/H34 -> 1015 | E12: =D7*50*A20 -> 425 | F12: =IF(E12/D12>1,1,E12/D12) -> 0.4187192118 | G12: =(E7-F7)*A$4*A$16*F12 -> 5639.310345
A13: Hand Thining Cost p Acre | F13: Made the "with machine" distinction because this only accounts for work done on machines meaning 5 ppl can do this much | G13: =SUM(G10:G12) -> 30503.31034
A14: 800
A15: Wage
A16: 14.8
A17: Apple Yield p BA (bu)
A18: 1000
A19: Machines | C19: =9*5.5 -> 49.5
A20: 1
A21: Total Cost
A22: =#REF!*E34*F34 -> 
A23: Pruning Worker Hours pA
A24: =A12/A16 -> 33.78378378
A25: Thinning Hours p A
A26: 61.02
A27: Harvest Labor p A | B27: WH per Acre | C27: Max Savings
A28: 1152 | B28: =A28/A16 -> 77.83783784 | C28: =B28*A16*A6*A4 -> 14976
A29: Thinning Hours p A
A30: 61.02
A33: Machine | B33: Cost of Machine | C33: Rate | D33: Down Payment | E33: Monthly Payments | F33: Years | G33: Monthly Payment | H33: Capacity | I33: Total Cost
A34: Bandit Xpress | B34: 32000 | C34: 0.0675 | D34: 2000 | E34: 1 | F34: 5 | G34: =PMT(C34/E34,E34*F34,B34*A20,-D34,0) -> -7402.811194 | H34: 6 | I34: =-(E34*F34*G34-D34) -> 39014.05597
A35: Huron Fruit System | B35: 65000 | C35: 0.0415 | D35: 0 | E35: =12 -> 12 | F35: 5 | G35: =PMT(C35/E35,E35*F35,B35,-D35,0) -> -1201.478897 | H35: 4
A38: Capacity Options
A39: 4
A40: 6
